bitfinex/quotes_ETHUSD_20240601
["timestamp","ask_amount","ask_price","bid_price","bid_amount"]
[1717206948371,1.12432759,3765.2,3764.4,0.645]
[1717206949322,0.55,3765.2,3764.4,0.645]
[1717206949566,1.12432241,3765.2,3764.4,0.645]
[1717206952462,2.459,3765.1,3764.4,0.645]
[1717206957386,2.459,3765.1,3764.4,3.30145]
[1717206957544,2.459,3765.1,3764.5,0.386513]
[1717206959055,2.2648,3765.4,3764.6,3.1321]
[1717206959261,0.57430991,3765.3,3764.6,3.1321]
[1717206961386,0.5743131,3765.3,3764.6,3.1321]
[1717206961593,0.5743131,3765.3,3764.6,0.645]
[1717206961758,0.5743131,3765.3,3764.6,1.205085]
[1717206962375,0.5743131,3765.3,3764.6,0.645]
[1717206963648,0.5743131,3765.3,3764.4,2.65645]
[1717206963986,2.4013,3765.2,3764.4,2.65645]
[1717206964151,0.57432496,3765.1,3764.4,2.65645]
[1717206965658,0.57432496,3765.1,3764.5,0.645]
[1717206965850,0.57432496,3765.1,3764.5,0.975145]
[1717206966060,2.4013,3765.2,3764.5,0.975145]
[1717206967458,0.57431417,3765.1,3764.5,0.975145]
[1717206970756,0.57431417,3765.1,3764.7,0.645]
[1717206970921,0.57430359,3765.6,3764.7,0.645]
[1717206971081,1.07998559,3765.6,3764.7,0.645]
[1717206972384,1.07998559,3765.6,3764.6,2.65626]
[1717206972385,1.72498559,3765.6,3764.6,2.65626]
[1717206972589,2.97559842,3765.5,3764.6,3.30126]
[1717206972834,0.57429842,3765.4,3764.6,3.30126]
[1717206973137,2.4013,3765.3,3764.6,2.65626]
[1717206973283,0.57429842,3765.2,3764.6,2.65626]
[1717206973767,0.57429842,3765.2,3764.3,0.645]
[1717206973955,0.57432944,3765.2,3764.3,0.645]
[1717206974835,0.57432944,3765.2,3764.1,4.95602]
[1717206975035,0.57432944,3765.2,3764.2,0.645]
[1717206975219,0.57432944,3765.2,3764.1,5.51978907]
[1717206975418,0.57432944,3765.2,3764.2,0.645]
[1717206978063,2.4255,3765.1,3764.2,0.645]
[1717206978510,3.64482944,3765.0,3764.1,2.65662]
[1717206978664,3.64482944,3765.0,3763.8,2.71187065]
[1717206978665,2.4255,3764.8,3763.8,3.35687065]
[1717206978860,1.12432944,3764.7,3763.8,3.35687065]
[1717206980855,0.55,3764.7,3763.8,3.35687065]
[1717206980990,1.12439255,3764.7,3763.8,3.35687065]
[1717206981808,1.12439255,3764.7,3763.8,2.9411]
[1717206982308,1.12439255,3764.7,3763.5,2.92294]
[1717206982532,2.2744,3764.6,3763.8,0.645]
[1717206983906,2.2744,3764.6,3763.6,0.292294]
[1717206984107,2.2744,3764.6,3763.8,0.645]
[1717206987402,2.2744,3764.6,3764.0,0.645]
[1717206994608,2.2744,3764.6,3763.8,0.645]
[1717206996717,0.645,3765.3,3764.2,0.645]
[1717206996934,2.2744,3765.2,3764.2,0.645]
[1717206997453,0.57437345,3765.1,3764.2,0.645]
[1717207001285,0.57437345,3765.1,3764.1,2.65663]
[1717207001286,0.57437345,3765.1,3764.4,0.645]
[1717207001584,2.2744,3765.2,3764.6,0.645]
[1717207007146,2.311,3765.5,3764.6,0.645]
[1717207007350,0.57429268,3765.4,3764.6,0.645]
[1717207007566,0.57429268,3765.4,3764.6,1.203464]
[1717207008313,0.57429268,3765.4,3764.7,2.65625]
[1717207008644,3.0,3765.8,3765.0,2.9283]
[1717207008645,2.311,3765.8,3765.0,2.9283]
[1717207008804,0.57426473,3765.7,3765.0,2.9283]
[1717207009113,1.3745408,3766.1,3765.1,0.558437]
[1717207009274,0.57426473,3766.0,3765.1,0.558437]
[1717207009490,0.57426473,3766.0,3765.1,1.203437]
[1717207009791,2.311,3765.9,3765.1,1.203437]
[1717207009991,0.57426473,3765.8,3765.1,1.203437]
[1717207010402,2.311,3765.9,3765.1,1.203437]
[1717207011409,2.311,3765.9,3765.2,0.6142807]
[1717207022090,2.311,3765.9,3765.1,0.645]
[1717207027903,2.311,3765.9,3765.0,2.2833]
[1717207028466,2.956,3765.9,3765.0,2.2833]
[1717207028868,0.57422538,3765.8,3765.0,2.2833]
[1717207029615,0.645,3765.7,3765.0,2.2833]
[1717207029812,0.57422538,3765.8,3765.0,2.2833]
[1717207033138,2.956,3765.9,3765.0,2.2833]
[1717207033271,1.15089209,3765.8,3765.0,2.2833]
[1717207038496,0.57423048,3765.8,3765.0,2.2833]
[1717207040396,0.57422771,3765.8,3765.1,3.30097]
[1717207040599,0.15527607,3766.1,3765.2,2.4771]
[1717207040927,0.72950378,3766.1,3765.2,2.4771]
[1717207041071,0.72950378,3766.1,3765.1,3.30097]
[1717207041072,0.72950378,3766.1,3765.4,2.4771]
[1717207041269,0.15527607,3766.1,3765.4,2.4771]
[1717207041890,0.80027607,3766.1,3765.4,2.4771]
[1717207042106,0.57421069,3766.0,3765.4,2.4771]
[1717207047432,0.80027607,3766.1,3765.4,2.4771]
[1717207047599,0.57421461,3766.0,3765.4,2.4771]
[1717207048704,0.80027607,3766.1,3765.4,2.4771]
[1717207048899,0.57421461,3766.0,3765.4,2.4771]
[1717207049156,0.57421461,3766.0,3765.4,3.1126877]
[1717207049905,0.80027607,3766.1,3765.4,3.1126877]
[1717207050117,0.57420342,3766.0,3765.4,3.1126877]
[1717207051155,0.57420476,3766.0,3765.4,3.1126877]
[1717207051754,0.15527607,3766.1,3765.5,2.3193]
[1717207051906,0.15527607,3766.1,3765.7,2.3193]
[1717207052673,0.15527607,3766.1,3765.8,2.65546]
[1717207052816,0.15527607,3766.1,3765.9,2.3193]
[1717207053609,0.57417362,3766.7,3766.1,2.3193]
[1717207053995,0.645,3766.8,3766.1,2.3193]
[1717207054326,0.645,3766.8,3766.1,2.881263]
[1717207055012,0.645,3766.8,3766.1,0.561963]
[1717207055237,0.645,3766.8,3766.0,2.65533]
[1717207055463,0.645,3766.8,3765.9,2.3193]
[1717207057815,2.4895,3766.7,3765.9,2.3193]
[1717207060030,0.645,3766.8,3765.9,2.3193]
[1717207061484,0.645,3766.6,3765.5,2.65565]
[1717207061704,0.645,3765.9,3765.3,2.3067]
[1717207062234,0.645,3765.9,3765.0,12.39269]
[1717207062514,0.645,3765.9,3765.0,4.96269]
[1717207064897,2.4895,3766.1,3765.1,0.645]
[1717207065107,0.55,3766.0,3765.1,0.645]
[1717207065832,5.14448,3766.5,3765.1,0.645]
[1717207066043,3.55,3766.4,3765.3,0.645]
[1717207066784,4.1242059,3766.4,3765.3,0.645]
[1717207067019,0.99136859,3766.3,3765.3,0.645]
[1717207068091,0.5742059,3766.4,3765.6,2.3067]
[1717207068286,0.5742059,3766.4,3765.7,0.645]
[1717207068481,5.14448,3766.5,3765.7,0.645]
[1717207069793,2.4895,3766.8,3765.7,0.645]
[1717207069995,0.645,3766.7,3765.7,0.645]
[1717207070195,0.645,3766.7,3765.8,0.29517]
[1717207070378,2.4895,3766.8,3765.8,0.29517]
[1717207071693,3.1345,3766.8,3765.8,0.29517]
[1717207074578,0.645,3766.6,3765.7,2.6555]
[1717207074775,0.645,3766.4,3765.7,2.6555]
[1717207077228,0.55,3766.5,3765.7,2.6555]
[1717207080631,0.55,3766.5,3765.8,2.4218]
[1717207083330,0.645,3766.4,3765.2,2.65586]
[1717207083501,0.645,3766.2,3765.2,3.906626]
[1717207084343,0.55,3766.1,3765.2,3.906626]
[1717207085204,0.55,3766.1,3765.2,2.65586]
[1717207085413,0.55,3766.2,3765.2,2.65586]
[1717207086307,0.55,3766.2,3765.1,3.0668]
[1717207086308,0.645,3765.9,3765.1,2.4218]
[1717207086543,0.645,3765.9,3764.9,0.645]
[1717207089755,0.57423334,3766.0,3765.0,2.4218]
[1717207089916,0.55,3765.9,3765.1,0.95168]
[1717207092969,0.55,3765.9,3765.0,2.4218]
[1717207093549,0.645,3765.6,3764.7,5.07801]
[1717207093750,0.645,3765.4,3764.5,7.43]
[1717207093951,0.55,3765.3,3764.5,7.43]
[1717207096747,0.55,3765.3,3764.3,2.4218]
[1717207096954,0.55,3765.3,3764.4,0.645]
[1717207097519,5.1296,3765.8,3765.0,0.645]
[1717207097864,5.1296,3765.8,3764.9,0.645]
[1717207098030,2.6555,3765.8,3764.9,0.645]
[1717207109819,2.6555,3765.8,3765.1,0.645]
[1717207110005,2.4741,3765.9,3765.1,0.645]
[1717207111029,2.4741,3765.9,3765.2,2.3505]
[1717207111319,2.4741,3765.9,3765.2,5.30591]
[1717207111525,3.0,3766.2,3765.3,0.645]
[1717207111676,5.07036,3766.3,3765.3,0.645]
[1717207113027,7.43,3767.3,3765.2,5.30591]
[1717207113028,2.65482,3766.8,3765.6,0.645]
[1717207113333,4.18435547,3766.7,3765.7,2.3505]
[1717207113500,0.57415547,3766.6,3765.7,2.3505]
[1717207113702,0.55,3766.5,3765.7,2.3505]
[1717207114017,0.57415547,3766.6,3765.8,0.645]
[1717207114389,2.4152,3766.7,3765.8,0.645]
[1717207114736,2.87209426,3766.7,3765.8,0.645]
[1717207115793,2.4152,3766.7,3765.8,3.30043]
[1717207116106,2.4152,3767.0,3765.8,3.30043]
[1717207116325,1.12410819,3766.9,3766.0,0.645]
[1717207116636,1.12410819,3766.9,3765.8,2.65543]
[1717207116637,2.4152,3767.0,3766.2,2.9955]
[1717207116940,2.4152,3767.0,3766.2,2.3505]
[1717207116941,2.986666,3767.0,3766.2,2.3505]
[1717207120007,3.631666,3767.0,3766.2,2.3505]
[1717207125058,2.986666,3767.0,3766.2,2.3505]
[1717207125353,2.4152,3767.0,3766.2,2.3505]
[1717207130906,2.65446,3767.3,3766.3,2.6551]
[1717207131054,3.0,3767.2,3766.4,2.3527]
[1717207131258,3.645,3767.2,3766.4,2.3527]
[1717207131558,2.2746,3767.1,3766.3,2.6551]
[1717207134406,2.2746,3767.1,3766.3,3.22038]
[1717207137097,2.65446,3767.3,3766.4,2.3557]
[1717207139923,0.645,3767.4,3766.4,2.3557]
[1717207141406,0.57402309,3767.5,3766.4,2.3557]
[1717207141706,0.645,3767.4,3766.4,2.3557]
[1717207141912,3.29936,3767.4,3766.4,2.3557]
[1717207142093,3.29936,3767.4,3766.3,2.6551]
[1717207142094,2.3536,3767.1,3766.3,2.6551]
[1717207142283,1.12402309,3767.0,3766.3,2.6551]
[1717207143206,0.55,3767.0,3766.3,2.6551]
[1717207143397,1.12405468,3767.0,3766.3,2.6551]
[1717207143598,0.55,3767.0,3766.3,2.6551]
[1717207143810,0.55,3767.1,3766.3,2.6551]
[1717207144325,0.57405383,3767.1,3766.3,2.6551]
[1717207144835,1.21905383,3767.2,3766.3,2.6551]
[1717207146441,2.14175521,3767.2,3766.3,2.6551]
[1717207146640,0.57405383,3767.1,3766.3,2.6551]
[1717207147341,0.645,3767.0,3766.3,2.6551]
[1717207147720,0.645,3767.0,3766.1,2.3557]
[1717207158606,0.57406082,3767.1,3766.1,2.3557]
[1717207158769,0.55,3767.0,3766.2,0.30007]
[1717207159267,1.12406082,3767.0,3766.2,0.30007]
[1717207161695,2.4953,3766.9,3765.9,0.645]
[1717207161876,0.57406082,3766.8,3765.9,0.645]
[1717207167016,2.4953,3766.9,3766.0,2.65527]
[1717207167232,0.57405955,3766.8,3766.0,2.65527]
[1717207167536,0.57405955,3766.8,3766.1,0.561617]
[1717207172748,0.57405955,3766.8,3766.3,2.3159]
[1717207172894,0.5740401,3767.1,3766.7,2.65483]
[1717207173098,3.57401674,3767.4,3766.7,2.65483]
[1717207173298,0.57401674,3767.3,3766.7,2.65483]
[1717207173534,2.4953,3767.2,3766.7,2.65483]
[1717207173894,0.57401674,3767.1,3766.3,2.9609]
[1717207176128,0.57403535,3767.1,3766.3,2.9609]
[1717207182958,0.57403679,3767.1,3766.3,2.9609]
[1717207185459,2.4953,3767.2,3766.3,2.9609]
[1717207185755,0.57403024,3767.1,3766.3,3.56217451]
[1717207188964,2.65395,3768.0,3767.0,0.645]
[1717207189115,2.65395,3768.0,3767.1,2.3538]
[1717207189461,0.57393627,3767.9,3767.1,2.3538]
[1717207190467,0.55,3767.8,3767.1,2.3538]
[1717207193268,0.55,3767.9,3767.1,2.3538]
[1717207193484,0.645,3767.8,3766.7,2.9988]
[1717207193703,0.645,3767.8,3766.7,2.3538]
[1717207194000,0.645,3767.4,3766.7,2.3538]
[1717207195098,0.645,3767.6,3766.7,2.3538]
[1717207195306,0.55,3767.5,3766.8,0.565365]
[1717207195715,0.55,3767.6,3766.8,0.565365]
[1717207197405,2.3842,3767.7,3766.8,1.210365]
[1717207198654,0.645,3767.8,3767.0,2.65461]
[1717207198855,0.57394804,3767.9,3767.0,3.29961]
[1717207199069,0.57394804,3767.9,3767.1,0.3864975]
[1717207200577,1.21894804,3767.9,3767.1,0.3864975]
[1717207201007,1.21894804,3767.9,3767.0,2.65461]
[1717207201218,2.2932,3767.7,3767.0,2.65461]
[1717207203259,2.2932,3767.7,3766.8,1.210365]
[1717207203764,0.645,3767.5,3766.5,2.65493]
[1717207204104,0.55,3767.4,3766.5,2.65493]
[1717207205611,0.55,3767.4,3766.5,3.29993]
[1717207205809,1.123975,3767.6,3766.5,3.29993]
[1717207205983,1.123975,3767.6,3766.8,0.645]
[1717207206227,1.123975,3767.6,3766.9,2.3141]
[1717207206361,0.55,3767.6,3766.9,2.3141]
[1717207206561,7.43,3768.6,3767.0,0.645]
[1717207206562,5.12855,3768.0,3767.0,0.645]
[1717207206884,0.57395342,3767.9,3767.1,2.65453]
[1717207207088,0.57395342,3767.9,3767.2,0.645]
[1717207207412,1.21895342,3768.3,3767.2,0.645]
[1717207207584,0.645,3768.1,3767.2,0.645]
[1717207208662,1.21895342,3768.3,3767.2,0.645]
[1717207208918,0.55,3768.2,3767.3,0.3860906]
[1717207209066,1.12395342,3768.2,3767.3,0.3860906]
[1717207209714,0.55,3768.2,3767.3,0.3860906]
[1717207209912,0.57390346,3768.1,3767.3,0.3860906]
[1717207210436,0.645,3768.2,3767.3,0.3860906]
[1717207210437,0.57390346,3768.2,3767.3,0.3860906]
[1717207210742,0.57390346,3768.3,3767.9,0.645]
[1717207210883,1.12384213,3768.4,3767.6,0.645]
[1717207212577,0.55,3768.4,3767.6,0.645]
[1717207212747,0.55,3768.4,3767.7,0.561335]
[1717207212902,0.645,3768.0,3767.1,2.3141]
[1717207213103,2.4746,3768.3,3767.1,2.3141]
[1717207213325,1.195,3768.2,3767.1,2.9591]
[1717207213503,1.195,3768.2,3767.1,3.520469]
[1717207213840,1.195,3768.2,3767.2,0.645]
[1717207217538,1.195,3768.2,3767.1,2.3141]
[1717207217839,0.645,3767.8,3766.8,2.9273]
[1717207218318,0.55,3767.7,3766.8,2.9273]
[1717207219689,0.55,3767.7,3766.8,2.2823]
[1717207219891,0.55,3767.7,3766.9,0.645]
[1717207220419,1.12392086,3767.9,3766.9,0.645]
[1717207220669,1.45380986,3767.9,3766.9,0.645]
[1717207220873,0.879889,3767.9,3766.9,0.645]
[1717207221739,0.879889,3767.9,3766.8,2.2823]
[1717207221946,0.879889,3767.9,3766.9,0.645]
[1717207222851,0.879889,3767.9,3766.8,2.2823]
[1717207223042,0.879889,3767.9,3766.9,0.645]
[1717207225671,2.3455,3767.8,3766.8,2.776025]
[1717207225873,0.55,3767.7,3766.8,2.2823]
[1717207226168,0.55,3767.7,3766.8,2.9273]
[1717207228080,0.55,3767.7,3767.0,0.645]
[1717207229476,2.3455,3767.8,3767.2,0.645]
[1717207229683,4.99939,3768.1,3767.2,0.645]
[1717207229971,2.3455,3768.1,3767.2,0.645]
[1717207230573,2.3455,3768.5,3767.4,0.645]
[1717207230780,0.55,3768.4,3767.4,0.645]
[1717207230950,0.55,3768.4,3767.6,0.645]
[1717207230951,0.57388514,3768.4,3767.6,0.645]
[1717207231147,0.57388514,3768.4,3767.7,2.2649]
[1717207231347,2.65355,3768.6,3767.8,0.645]
[1717207231750,0.57384029,3768.5,3767.8,0.645]
[1717207232490,0.57384029,3768.6,3767.8,0.645]
[1717207232934,2.3455,3768.8,3767.8,0.645]
[1717207232935,0.57384029,3768.7,3767.8,0.645]
[1717207233286,0.35643403,3768.6,3767.8,0.645]
[1717207235078,0.57384029,3768.7,3767.7,2.2649]
[1717207235313,1.21884029,3769.5,3768.5,2.9099]
[1717207236469,4.21884029,3769.5,3768.5,2.9099]
[1717207236670,1.23027432,3769.4,3768.5,2.9099]
[1717207237565,0.65643403,3769.4,3768.5,2.9099]
[1717207237765,0.57373058,3769.4,3769.2,0.645]
[1717207238085,0.57373058,3769.4,3768.6,2.65348]
[1717207238086,0.57373058,3769.7,3768.6,2.65348]
[1717207238303,0.57373058,3769.7,3768.7,0.645]
[1717207238621,0.57373058,3769.7,3768.8,0.05306019]
[1717207238909,1.20796064,3769.7,3768.8,0.05306019]
[1717207239113,1.20796064,3769.7,3768.9,0.645]
[1717207239466,2.4709,3770.0,3768.9,0.645]
[1717207239668,0.5736708,3769.9,3768.9,0.645]
[1717207239885,3.5736708,3769.9,3768.9,0.645]
[1717207240085,0.5736708,3769.8,3768.9,0.645]
[1717207240327,3.0,3769.9,3768.9,0.645]
[1717207240467,3.61159,3769.9,3768.9,0.645]
[1717207240662,3.61159,3769.9,3769.1,0.645]
[1717207242914,3.61159,3769.9,3769.2,2.4148]
[1717207243871,0.645,3769.8,3768.8,2.4148]
[1717207244097,1.317749,3769.8,3768.8,2.4148]
[1717207245984,0.672749,3769.8,3768.9,0.645]
[1717207246617,2.4709,3770.0,3769.1,0.645]
[1717207246817,3.645,3770.2,3769.1,0.645]
[1717207246982,0.55,3770.1,3769.1,0.645]
[1717207248991,3.0,3770.2,3769.1,0.645]
[1717207249219,4.521822,3770.2,3769.1,0.645]
[1717207250219,3.876822,3770.2,3769.1,0.645]
[1717207250457,4.521822,3770.2,3769.1,0.645]
[1717207250753,3.876822,3770.2,3769.1,0.645]
[1717207250913,3.876822,3770.2,3769.2,2.4148]
[1717207251258,0.8940042,3770.1,3769.2,2.4148]
[1717207256456,0.8940042,3770.1,3769.3,0.645]
[1717207258438,5.12322,3770.3,3769.3,0.645]
[1717207258626,2.65232,3770.3,3769.3,0.645]
[1717207258832,3.29732,3770.3,3769.3,0.645]
[1717207260348,0.57361468,3770.2,3769.3,0.645]
[1717207262458,0.57361468,3770.2,3769.4,2.386]
[1717207263067,0.57359939,3770.2,3769.4,2.386]
[1717207263270,0.57359939,3770.2,3769.6,0.645]
[1717207263426,0.57359939,3770.2,3769.8,0.645]
[1717207263627,1.21859939,3770.5,3769.7,2.386]
[1717207263928,3.22583939,3770.4,3769.5,0.645]
[1717207264258,0.57359939,3770.3,3769.5,0.645]
[1717207265951,0.57359939,3770.3,3769.7,0.645]
[1717207266276,0.57359939,3770.3,3769.8,2.386]
[1717207267249,0.5735305,3770.6,3769.9,0.3031]
[1717207267449,0.5735305,3770.6,3769.8,2.386]
[1717207271588,1.2185305,3770.6,3769.8,2.386]
[1717207274594,0.645,3770.4,3769.8,2.386]
[1717207276165,0.645,3770.4,3769.3,2.65298]
[1717207276394,2.81257105,3770.3,3769.4,2.386]
[1717207276565,0.5735305,3770.2,3769.4,2.386]
[1717207279568,1.2185305,3770.4,3769.4,2.386]
[1717207279980,1.2185305,3770.4,3769.6,2.4605]
[1717207282249,0.5735305,3770.4,3769.6,3.036348]
[1717207284203,0.5735305,3770.4,3769.8,2.4605]
[1717207287096,3.5735305,3770.6,3769.8,2.4605]
[1717207287300,0.5735305,3770.5,3769.9,0.33895951]
[1717207287466,0.5735305,3770.6,3769.9,0.33895951]
[1717207287666,0.645,3770.7,3769.9,0.33895951]
[1717207287903,0.645,3770.7,3769.7,0.645]
[1717207287904,1.2185305,3770.7,3769.8,2.4605]
[1717207288046,0.5735305,3770.6,3769.8,2.4605]
[1717207288254,0.645,3770.7,3769.8,2.4605]
[1717207288471,1.2185305,3770.7,3769.9,2.4605]
[1717207288671,0.5735305,3770.6,3769.9,2.4605]
[1717207288910,0.645,3770.7,3769.9,2.4605]
[1717207289210,0.5735305,3770.7,3769.9,2.4605]
[1717207291375,0.57352455,3770.7,3769.9,2.4605]
[1717207291708,0.57352455,3770.7,3769.9,3.09966158]
[1717207294706,1.21852455,3770.8,3769.9,3.09966158]
[1717207295573,0.57352455,3770.8,3770.0,5.75801]
[1717207295740,0.60071825,3770.9,3770.1,2.4605]
[1717207295879,0.60071825,3770.9,3770.2,0.63971716]
[1717207296837,0.60071825,3770.9,3770.3,2.4778]
[1717207300441,0.60068441,3770.9,3770.3,2.4778]
[1717207303491,2.4944,3770.8,3770.0,2.4581]
[1717207303686,0.57349071,3770.7,3769.6,2.4581]
[1717207303893,0.57349071,3770.7,3769.7,0.511091]
[1717207305230,0.57349071,3770.7,3769.8,2.4581]
[1717207309323,2.4944,3770.8,3769.9,0.645]
[1717207309522,0.57349071,3770.7,3769.9,0.645]
[1717207309822,0.57349071,3770.7,3770.0,0.3614191]
[1717207312975,2.65211,3770.6,3769.7,1.156091]
[1717207313272,0.645,3770.2,3769.3,2.4581]
[1717207315031,0.57353714,3770.3,3769.6,2.4581]
[1717207315235,0.57353714,3770.3,3769.7,0.575598]
[1717207316226,0.57353714,3770.3,3769.7,1.220598]
[1717207316987,2.6791237,3770.9,3770.1,0.645]
[1717207317156,0.57346973,3770.6,3770.1,0.645]
[1717207317663,0.57346973,3770.8,3770.5,0.645]
[1717207318286,0.0271937,3770.9,3770.5,0.645]
[1717207318639,0.0271937,3770.9,3770.6,2.2637]
[1717207318852,0.0271937,3770.9,3770.7,0.29087]
[1717207319448,0.0271937,3770.9,3770.8,0.05303304]
[1717207319840,0.0271937,3770.9,3770.5,0.645]
[1717207319841,0.0271937,3770.9,3770.7,0.645]
[1717207322686,0.0271937,3770.9,3770.6,2.65206]
[1717207322887,0.0271937,3770.9,3770.7,0.645]
[1717207323063,0.0271937,3770.9,3770.8,0.329706]
[1717207329748,0.0271937,3770.9,3770.8,0.974706]
[1717207330052,0.0271937,3770.9,3770.8,3.238406]
[1717207332119,0.0271937,3770.9,3770.8,0.329706]
[1717207332319,0.0271937,3770.9,3770.6,2.65206]
[1717207333915,0.0271937,3770.9,3770.2,2.2637]
[1717207334115,0.0271937,3770.9,3770.1,2.65241]
[1717207336317,0.0271937,3770.9,3770.2,0.645]
[1717207337011,0.0271937,3770.9,3770.4,0.645]
[1717207337205,0.0271937,3770.9,3770.6,0.645]
[1717207338301,0.0271937,3770.9,3770.8,0.645]
[1717207347961,0.0271937,3770.9,3770.8,0.69802705]
[1717207348104,0.0271937,3770.9,3770.8,0.645]
[1717207348705,0.0271937,3770.9,3770.8,0.69802706]
[1717207348905,0.0271937,3770.9,3770.8,1.55667057]
[1717207349612,0.0271937,3770.9,3770.8,1.50364351]
[1717207350939,0.0271937,3770.9,3770.8,3.95354351]
[1717207354979,0.0271937,3770.9,3770.8,3.30854351]
[1717207355267,0.0271937,3770.9,3770.8,3.95354351]
[1717207357354,0.0271937,3770.9,3770.8,1.50364351]
[1717207358090,0.0271937,3770.9,3770.8,0.85864351]
[1717207358390,0.0271937,3770.9,3770.8,1.50364351]
[1717207359841,0.0271937,3770.9,3770.8,0.85864351]
[1717207360021,0.0271937,3770.9,3770.8,1.50364351]
[1717207363264,0.0271937,3770.9,3770.8,0.85864351]
[1717207363507,0.0271937,3770.9,3770.8,1.50364351]
[1717207368006,2.3191937,3770.9,3770.5,0.645]
[1717207369615,2.3191937,3770.9,3770.7,0.645]
[1717207371567,2.3191937,3770.9,3770.4,2.65218]
[1717207371770,2.3191937,3770.9,3770.5,0.645]
[1717207372166,2.3191937,3770.9,3770.5,1.3277721]
[1717207373614,2.3191937,3770.9,3770.4,2.65218]
[1717207379796,2.3191937,3770.9,3770.2,0.265241]
[1717207380003,2.3191937,3770.9,3770.2,0.910241]
[1717207380221,2.3191937,3770.9,3769.9,5.65253]
[1717207380497,2.422,3770.8,3769.9,3.29753]
[1717207380867,2.422,3770.8,3770.1,0.645]
[1717207381314,0.0271937,3770.9,3770.6,0.645]
[1717207382563,0.0271937,3770.9,3770.8,0.645]
[1717207382812,0.0271937,3770.9,3770.8,0.974708]
[1717207388137,0.0271937,3770.9,3770.8,0.329708]
[1717207388788,2.3639937,3770.9,3770.8,0.329708]
[1717207388988,2.3639937,3770.9,3770.6,2.65208]
[1717207391091,2.3639937,3770.9,3770.0,10.08245]
[1717207391092,3.0089937,3770.9,3770.0,10.08245]
[1717207391347,2.3368,3770.8,3770.0,10.08245]
[1717207392412,0.645,3770.7,3770.0,10.08245]
[1717207392580,2.3368,3770.6,3770.0,10.08245]
[1717207395393,2.3368,3770.6,3770.0,2.65245]
[1717207395581,0.6721937,3770.9,3770.0,2.65245]
[1717207395782,0.0271937,3770.9,3770.3,2.65229]
[1717207406766,0.97309307,3770.9,3769.9,0.645]
[1717207406932,0.645,3770.7,3769.8,2.91791]
[1717207407365,2.4368,3770.8,3769.8,3.56291]
[1717207416531,2.4368,3770.8,3769.8,3.29761]
[1717207420273,2.4368,3770.8,3769.8,2.65261]
[1717207420649,2.2889,3770.6,3769.8,2.65261]
[1717207421024,2.2889,3770.6,3769.3,13.08296]
[1717207421025,0.645,3770.3,3769.3,13.08296]
[1717207421373,2.2889,3770.2,3769.3,2.65296]
[1717207423678,2.2889,3770.2,3769.3,3.29796]
[1717207423879,2.2889,3770.2,3769.4,0.356326]
[1717207425277,2.2889,3770.1,3769.4,0.356326]
[1717207426440,2.2889,3770.1,3769.3,2.65296]
[1717207431184,2.28677815,3770.1,3769.3,2.65296]
[1717207431335,0.645,3770.0,3769.3,2.65296]
[1717207432635,0.645,3770.0,3768.9,3.0]
[1717207432868,0.645,3770.0,3768.9,3.645]
[1717207433036,0.645,3770.0,3769.0,0.656361]
[1717207434195,2.2889,3769.9,3769.0,0.656361]
[1717207435162,2.9339,3769.9,3769.0,0.656361]
[1717207435365,2.9339,3769.9,3769.1,2.65311]
[1717207439507,2.2889,3769.9,3769.1,2.65311]
[1717207439710,2.2889,3769.9,3769.2,0.6954471]
[1717207441904,2.9339,3769.9,3769.2,0.6954471]
[1717207443764,2.2889,3769.9,3769.2,0.6954471]
[1717207446560,2.4061,3769.7,3769.1,2.65311]
[1717207450724,0.645,3769.8,3768.6,7.43]
[1717207450725,2.4061,3769.2,3768.6,7.43]
[1717207451022,2.4061,3768.9,3768.1,2.6538]
[1717207451177,0.30511,3768.8,3768.1,2.6538]
[1717207451383,2.4061,3768.9,3768.1,2.6538]
[1717207462480,2.4061,3768.9,3767.7,2.7297]
[1717207462481,2.3937,3769.5,3768.4,2.65358]
[1717207462629,2.3937,3769.5,3768.4,3.29858]
[1717207462832,3.0387,3769.5,3768.4,3.29858]
[1717207463551,2.3937,3769.5,3768.4,3.29858]
[1717207463753,0.645,3769.4,3768.7,2.65343]
[1717207464680,2.3937,3769.5,3768.7,2.65343]
[1717207465802,2.65225,3770.4,3769.0,2.65321]
[1717207465958,2.65225,3770.4,3769.1,0.69805655]
[1717207465959,0.645,3770.1,3769.1,0.69805655]
[1717207466160,2.3937,3770.3,3769.4,2.4941]
[1717207466476,0.645,3770.6,3769.6,0.645]
[1717207466845,0.645,3770.6,3769.7,0.05304836]
[1717207467255,2.3937,3770.8,3769.4,2.4941]
[1717207467256,3.0387,3770.8,3769.9,2.65256]
[1717207467589,0.645,3770.6,3769.9,2.65256]
[1717207471534,0.645,3770.5,3769.9,2.65256]
[1717207474615,0.645,3770.5,3769.4,2.65293]
[1717207474616,2.3937,3770.4,3769.4,2.65293]
[1717207474822,0.645,3770.1,3769.4,2.65293]
[1717207475005,2.3937,3770.0,3769.1,0.58453665]
[1717207475205,2.3937,3770.0,3769.2,0.80145367]
[1717207475387,2.3937,3770.0,3769.1,0.58453665]
[1717207480011,2.3937,3770.0,3769.2,0.645]
[1717207480664,2.3937,3770.0,3769.2,3.29804]
[1717207483839,2.3937,3770.0,3769.2,2.65304]
[1717207484469,2.3937,3770.0,3769.2,3.29804]
[1717207484672,2.3937,3770.0,3769.3,0.38825767]